Cogmind - Beta 12 @@@ ROGUE MODE // 2023.11.26 @ 14:17:33 Player: Mozco Result: Destroyed by G-47 Trooper with Particle Gun Performance ------------- Evolutions (0) 0 Regions Visited (1) 200 Robots Destroyed (20) 100 Value Destroyed (424) 424 Prototype IDs (0) 0 Alien Tech Used (0) 0 Bonus (0) 0 TOTAL SCORE: 724 Bonus ------- None Cogmind --------- Core Integrity 0/250 Matter 275/300 Energy 116/160 System Corruption 1% Temperature Hot (236) Movement Treading (160) Location -10/Materials Parts ------- > --- POWER (1) -------- Light Nuclear Core > --- PROPULSION (2) --- Light Treads Light Treads > --- UTILITY (2) ------ Large Storage Unit Core Shielding > --- WEAPON (2) ------- Small Laser Small Laser > --- INVENTORY (15) --- Ion Engine Light Ion Engine Light Ion Engine Aluminum Leg Aluminum Leg Wheel Improved Heat Sink High-capacity Storage Unit Visual Processing Unit Light Armor Plating Light Armor Plating Light Armor Plating Peak State ------------ > --- POWER ------------ Light Nuclear Core > --- PROPULSION ------- Light Treads Light Treads > --- UTILITY ---------- Improved Heat Sink Small Storage Unit > --- WEAPON ----------- Medium Laser Small Laser > --- INVENTORY -------- Ion Engine Light Ion Engine Light Ion Engine Aluminum Leg Aluminum Leg Wheel Small Laser [Rating: 11] Favorites ----------- Power Light Nuclear Core Engine Light Ion Engine Power Core Light Nuclear Core Propulsion Light Treads Treads Light Treads Wheel Compact Wheel Utility Improved Heat Sink Device Improved Heat Sink Storage Large Storage Unit Protection Core Shielding Weapon Small Laser Energy Gun Small Laser Build | -11 -10 ------- Run | Jun Mat Slots Evolved . | . . Power . | . . Propulsion . | . . Utility . | . . Weapon . | . . Parts Attached 24 | 6 18 Power 5 | 1 4 Engine 3 | 1 2 Core 2 | . 2 Reactor . | . . Propulsion 8 | 2 6 Treads 6 | . 6 Leg . | . . Wheel 2 | 2 . Hover . | . . Flight . | . . Utility 5 | 1 4 Device 1 | . 1 Storage 2 | 1 1 Processor . | . . Hackware . | . . Protection 2 | . 2 Artifact . | . . Weapon 6 | 2 4 Energy Gun 6 | 2 4 Energy Cannon . | . . Ballistic Gun . | . . Ballistic Cannon . | . . Launcher . | . . Special Weapon . | . . Impact Weapon . | . . Slashing Weapon . | . . Piercing Weapon . | . . Special Melee Weapon . | . . Unidentified Prototypes . | . . Parts Lost 4 | . 4 Power . | . . Propulsion 3 | . 3 Utility . | . . Weapon 1 | . 1 Highest Loss Streak 2 | . 2 To Critical Strikes . | . . Average Slot Usage (%) 96 | . 96 Engine 2 | . 2 Core 11 | . 11 Treads 25 | . 25 Wheel 1 | . 1 Device 7 | . 7 Storage 14 | . 14 Protection 4 | . 4 Energy Gun 27 | . 27 Naked Turns . | . . Heaviest Build 28 | 11 28 Greatest Support 40 | 26 40 Greatest Overweight (x) . | . . Average Overweight (x) . | . . Largest Inventory Capacity 15 | 8 15 Average Capacity 11 | 6 11 Most Carried 14 | 6 14 Average Carried 7 | 4 8 Final Capacity 15 | 8 15 Final Carried 12 | 6 12 Class Distribution -------------------- 100% | Mutant Dominant Class ---------------- Mutant | -10/Materials Resources | -11 -10 ----------- Run | Jun Mat Matter Collected 402 | 229 173 Remotely . | . . Salvage Created 583 | . 583 Parts 46 | . 46 Haulers Intercepted 1 | . 1 Recyclers Shooed . | . . Parts Field Recycled . | . . Retrieved Matter . | . . Parts Self-Destructed . | . . Prevented . | . . Kills | -11 -10 ------- Run | Jun Mat Combat Hostiles Destroyed 12 | . 12 Guns 11 | . 11 Classes Destroyed 7 | . 7 Worker 2 | . 2 Tunneler 1 | . 1 Hauler 1 | . 1 Operator 2 | . 2 Watcher 2 | . 2 Swarmer 3 | . 3 Grunt 9 | . 9 Best Kill Streak 4 | . 4 Combat Bots Only 4 | . 4 Max Kills in Single Turn 1 | . 1 Gunslinging . | . . Exploded . | . . Melee . | . . Uniques/NPCs Destroyed . | . . Combat | -11 -10 -------- Run | Jun Mat Damage Taken 1215 | . 1215 Core 255 | . 255 Absorbed by Shields . | . . Redirected to Shielding 10 | . 10 Regen/Repaired (Parts) 270 | . 270 Core Remaining (%) 100 | 100 . Volleys Fired 84 | . 84 Largest 2 | . 2 Hottest 90 | . 90 Shots Fired 144 | . 144 Gun 144 | . 144 Cannon . | . . Launcher . | . . Special . | . . Kinetic . | . . Thermal 144 | . 144 Explosive . | . . Electromagnetic . | . . Robot Hit Streak 14 | . 14 Robot Miss Streak 5 | . 5 Penetration Max . | . . Secondary Targets 2 | . 2 Max Gunslinging Chain 1 | . 1 Shots Hit Robots 87 | . 87 Core Hits 40 | . 40 Critical Kills . | . . Critical Parts Destroyed . | . . Critical Strikes 2 | . 2 Burn 2 | . 2 Melee Attacks . | . . Impact . | . . Slashing . | . . Piercing . | . . Sneak Attacks . | . . Combat Hostiles . | . . Follow-up Attacks . | . . Damage Inflicted 1048 | . 1048 Guns 1031 | . 1031 Cannons . | . . Explosions . | . . Melee . | . . Ramming 17 | . 17 Kinetic . | . . Thermal 1031 | . 1031 Explosive . | . . Electromagnetic . | . . Impact . | . . Slashing . | . . Piercing . | . . Highest Corruption 1 | . 1 Average Corruption 1 | . 1 Corruption Purged . | . . Corruption Blocked . | . . Effects 1 | . 1 Parts Rejected 1 | . 1 Overload Shots . | . . Overflow Damage . | . . Projectiles . | . . Explosions . | . . Melee . | . . Knockbacks . | . . Impact . | . . Kinetic . | . . Secondary . | . . Self-Inflicted Damage . | . . Shots . | . . Rammed . | . . Targets Rammed 2 | . 2 Kicked . | . . Crushed 2 | . 2 Highest Temperature 487 | . 487 Average Temperature 158 | . 158 Received Heat Transfer 630 | . 630 Effects 7 | . 7 Shutdowns 1 | . 1 Energy Bleed 3 | . 3 Interference 2 | . 2 Short Circuit 1 | . 1 Siege Activations . | . . Robots Corrupted . | . . Combat Hostiles . | . . Parts Fried . | . . Impact Corruptions . | . . Robots Melted 1 | . 1 Combat Hostiles 1 | . 1 Parts Melted 3 | . 3 Heat Transferred 2651 | . 2651 Parts Sabotaged . | . . Parts Stolen . | . . Parts Stripped . | . . Power Chain Reactions . | . . Missiles Intercepted . | . . Alert | -11 -10 ------- Run | Jun Mat Peak Influence 239 | . 239 Initial . | . . Average 132 | . 140 Maximum Alert Level 1 | . 1 Low Security (%) 78 | 100 76 Level 1 21 | . 23 Level 2 . | . . Level 3 . | . . Level 4 . | . . Level 5 . | . . High Security . | . . Max Security . | . . Squads Dispatched 4 | . 4 Investigation 2 | . 2 Extermination . | . . Reinforcement 2 | . 2 Assault . | . . Garrison . | . . Intercept . | . . Searches Triggered . | . . Construction Impeded . | . . Haulers Reinforced . | . . Active Scanning Responses . | . . Cargo Convoy Interrupts . | . . Stealth | -11 -10 --------- Run | Jun Mat Distress Signals 1 | . 1 Communications Jammed . | . . Distress Signals . | . . Times Spotted 25 | . 25 Peak Tracking Total 5 | . 5 Tactical Retreats 1 | . 1 Traps | -11 -10 ------- Run | Jun Mat Traps Triggered . | . . Indirectly . | . . Trap Hack Attempts . | . . Triggered . | . . Disarmed . | . . Reprogrammed . | . . Reused . | . . Traps Extracted . | . . Installed . | . . Triggered . | . . Machines | -11 -10 ---------- Run | Jun Mat Machines Disabled . | . . Max in Single Turn . | . . Machines Repaired . | . . Machines Sabotaged . | . . Overloaded Fab Kills . | . . Hacking | -11 -10 --------- Run | Jun Mat Machines Accessed 5 | . 5 Terminals 3 | . 3 Fabricators . | . . Repair Stations 1 | . 1 Recycling Units 1 | . 1 Scanalyzers . | . . Garrison Access . | . . Total Hacks 19 | . 19 Successful 15 | . 15 Failed 4 | . 4 Catastrophic . | . . Database Lockouts . | . . Manual 6 | . 6 Terminals 10 | . 10 Fabricators . | . . Repair Stations 8 | . 8 Recycling Units 1 | . 1 Scanalyzers . | . . Garrison Access . | . . Terminal Hacks 3 | . 3 Zone Layout 3 | . 3 Fabricator Hacks . | . . Repair Station Hacks 8 | . 8 Scan Component 4 | . 4 Repair 4 | . 4 Recycling Unit Hacks . | . . Scanalyzer . | . . Garrison Access Hacks . | . . Unauthorized Hacks 4 | . 4 Terminals 3 | . 3 Track 1 | . 1 Botnet 2 | . 2 Fabricators . | . . Repair Stations . | . . Recycling Units 1 | . 1 Tunnel 1 | . 1 Scanalyzers . | . . Garrison Access . | . . Data Cores Recovered . | . . Used . | . . Hacking Detections 4 | . 4 Full Trace Events 1 | . 1 Feedback Events 1 | . 1 Corruption 1 | . 1 Feedback Blocked . | . . Robot Schematics Acquired . | . . Robots Built . | . . Authchips . | . . Time . | . . Total Robot Build Rating . | . . Part Schematics Acquired . | . . Parts Built . | . . Authchips . | . . Time . | . . Total Part Build Rating . | . . Parts Repaired 4 | . 4 Time 116 | . 116 Parts Recycled . | . . Recycled Matter . | . . Retrieved Matter . | . . Retrieved Components . | . . Parts Scanalyzed . | . . Part Schematics Acquired . | . . Parts Damaged . | . . Bothacking | -11 -10 ------------ Run | Jun Mat Used RIF Installer . | . . Robots Hacked . | . . Non-combat . | . . Combat . | . . Robot Hacks Applied . | . . Relay Couplers Released . | . . Fabnet Peak Effective % . | . . Robots Rewired . | . . Allies Hacked . | . . Hacks Repelled . | . . Allies | -11 -10 -------- Run | Jun Mat Total Allies . | . . Largest Group . | . . Highest-Rated Group . | . . Highest-Rated Ally . | . . Total Orders . | . . Ally Attacks . | . . Total Damage . | . . Kills . | . . Allies Corrupted . | . . Allies Melted . | . . Intel | -11 -10 ------- Run | Jun Mat Robot Analysis Total . | . . Derelict Logs Recovered . | . . Drone Launches . | . . Drone Recoveries . | . . Exploration | -11 -10 ------------- Run | Jun Mat Turns Passed 1054 | 67 987 Spaces Moved 510 | 58 452 Core 1 | 1 . Treads 411 | . 411 Legs . | . . Wheels 98 | 57 41 Hover . | . . Flight . | . . Fastest Speed 50 | 50 90 Average Speed 146 | 89 153 Slowest Speed 160 | 100 160 Overloaded Moves . | . . Propulsion Burnouts . | . . Robots Hopped . | . . Cave-ins Triggered . | . . Exploration Rate (%) 32 | 4 60 Regions Visited 1 Branch Regions . Pre-discovered Areas 1 | . 1 Known Exits Taken . | . . Unknown Exits Taken 1 | 1 . Scrap Searched . | . . Spaces Dug . | . . Terrain Destroyed . | . . Melee . | . . Projectile . | . . AOE . | . . Terrain Rammed . | . . Walls Destroyed . | . . Machines Disabled . | . . Actions | -11 -10 --------- Run | Jun Mat Total 664 | 69 595 Wait 29 | . 29 Move 509 | 57 452 Hop . | . . Pick Up 14 | 6 8 Fast Attach 11 | 6 5 Attach 6 | . 6 Detach . | . . Swap 7 | . 7 Drop 2 | . 2 Fire 84 | . 84 Melee . | . . Ram . | . . Kick . | . . Crush 2 | . 2 Escape Stasis . | . . Rewire . | . . Trap . | . . Miscellaneous . | . . Route ------- -11/Junkyard -10/Materials (discovered 2 exits: [*Mat] / [*Min]) History --------- Turn | Location | Event 8 | -11/Junkyard | Discovered new exit (range 15) 68 | -11/Junkyard | Entered Materials 182 | -10/Materials | Core integrity fell below 50% 300 | -10/Materials | Build established: Mutant 340 | -10/Materials | Repaired Lgt. Treads 371 | -10/Materials | Repaired Lgt. Treads 406 | -10/Materials | Repaired Med. Laser 445 | -10/Materials | Repaired Lgt. Nuclear Core 498 | -10/Materials | Discovered new exit (range 10) 603 | -10/Materials | Core integrity fell below 20% 748 | -10/Materials | Discovered new exit (range 15) 1055 | -10/Materials | Destroyed by G-47 Trooper with Particle Gun Last Messages --------------- 00773_ Acquired Visual Processing Unit. 00801_ Acquired Hcp. Storage Unit. 00826_ G-34 Mercenary destroyed. 00826_ K-01 Serf collects debris. 00838_ R-06 Scavenger collects Ion Engine. 00851_ K-01 Serf cleans the Electrolysis Chamber. 00856_ R-06 Scavenger collects Hover Unit. 00858_ K-01 Serf cleans the Electrolysis Chamber. 00951_ K-01 Serf cleans the Terminal. 00988_ Crushed K-01 Serf. 00988_ K-01 Serf destroyed. 01020_ Acquired Lgt. Armor Plating. 01038_ Critical hit (Burn: +37). 01040_ Lgt. Treads destroyed. 01050_ Overheating: Energy bleed (-36). 01051_ Overheating: Energy bleed (-32). 01051_ Lgt. Treads destroyed. 01054_ System corrupted: Core Shielding rejected. 01054_ Acquired Core Shielding. 01055_ M-13 Machinist repairs G-47 Trooper. Map ----- +----------------------------------------------------+ | + # ######+#####+## # """"""" # | | ######## ###+#### # # """"""" # | | ???????# # # """ """ # # """"""" # | | ???????####### """ # """"""""" # # """"""" # | | ?????????????# """ # """"" # + """"""" # | | ?????????????# """ # # # # | | ############## """ ##+########### ############# | | # +^""" ## #??????#""" #??????????? | | # ############ ## #??????#" #??????????? | | # #???# # ## #??????#"! #??????????? | | # #???# # + #??????#"" < #??????????? | | # #???# # ## ########"| #??????????? | | # ##### ! # "T" ## # #" #??????????? | | # + # """ ## # """ #""" % #??????????? | | # # # ## # """ #### ^##??????????? | | # ####+#####+##### # """ #??# ^ #???????????? | | # + #??# #???????????? | | # ######## ####### #??# #???????????? | | # #??????# #????#########??# ##??????????? | | #= #??????# #????# ##### ####???????? | | #%##### #??????# #????# ???????? | | #[#???# ###????# #????# g ??????? | | #=#???# #????# #????# gm ??????????? | | #=#???# #????#*#????# ! #????????????????? | | #+##### #???##+####### * #????????????????? | | %[= # #???# # @ #????????????????? | | % [ # #???#""" # #????????????????? | | = # #???#""" + #????????????????? | | # #???#""" # !!! #????????????????? | | + #???# # !!! #????????????????? | | # #???#""" # !! #????????????????? | | # #???#""" # #????????????????? | | #| ###?#""" + #????????????????? | | # T#?# # #????????????????? | | ####### ""#?########### ## [ #???????????????? | | ####### ###???????????# #? ????????????? | | ####### #?????????????# #? ?????????? | | ##### # #?????????????# #? ??????????? | | ###### #?????????????# #? w#### ?????????? | | ####### #?????????????#+#?##+###???? ??????????? | | ####### #??????????????????????????????????????? | | ??????# #??????????????????????????????????????? | | ??????#####??????????????????????????????????????? | | ?????????????????????????????????????????????????? | | ?????????????????????????????????????????????????? | | ?????????????????????????????????????????????????? | | ?????????????????????????????????????????????????? | | ?????????????????????????????????????????????????? | | | | | +----------------------------------------------------+ Best States ------------- Heat Dissipation 39 Energy Generation 14 Energy Capacity 250 Matter Stores 300 Matter Capacity 300 Sight Range 16 Terrain Scan Density 10 Core Shielding 20 Evasion (%) 42 Recoil Reduction 2 Item Schematics ----------------- None Robot Schematics ------------------ None Fabricated ------------ Nothing Alien Tech Used ----------------- None Achievements -------------- None Challenges ------------ None Game ------ Seed DirtyWeaponMeganuke Manual? 0 Play Time 00:09:09 Cumulative 73.9 hours Start 2023.11.26 @ 14:08:01 End 2023.11.26 @ 14:17:33 Sessions 1 Manual Loads 0 Difficulty Rogue Special Mode None Game No. 67 Rogue 64 Adventurer 3 Explorer 0 Win Type - Total 0 Types 0/0/0/0/0/0/0/0/0 Lore% 55 Gallery% 57 Achievement% 47 Wizard Run 0 Options --------- ASCII 0 Keyboard 0 Movement Mouse Keybinds 0 Fullscreen 2 Font 18/SmallcapsGlow Map View 76x50 Tactical HUD 1 Map Filters NONE Filters NONE Steam 1 RUN: 084bd977-7b31-4021-9491-fb107ae2479e